[Event "Titled Tuesday Blitz April 05 Late 2022"]
[White "Kosakowski, Jakub"]
[Black "Herrera Reyes, Jose Antonio"]
[WhiteFideId "1185080"]
[BlackFideId "2274914"]
[WhiteElo "2454"]
[BlackElo "2361"]
[Result "0-1"]
[Round "08"]
[TimeControl "180+1"]
[Date "2022.04.05"]
[WhiteClock "0:00:02"]
[BlackClock "0:00:32"]

1. e4 {[%clk 0:03:00]}  c5 {[%clk 0:02:58]} 2. Nf3 {[%clk 0:03:00]}  e6 {[%clk 0:02:58]} 3. d4 {[%clk 0:03:00]}  cxd4 {[%clk 0:02:59]} 4. Nxd4 {[%clk 0:03:00]}  a6 {[%clk 0:02:59]} 5. Bd3 {[%clk 0:03:00]}  Qc7 {[%clk 0:03:00]} 6. O-O {[%clk 0:02:59]}  Bc5 {[%clk 0:02:58]} 7. Nb3 {[%clk 0:02:55]}  Ba7 {[%clk 0:02:58]} 8. Qg4 {[%clk 0:02:54]}  Kf8 {[%clk 0:02:43]} 9. Nc3 {[%clk 0:02:49]}  d6 {[%clk 0:02:41]} 10. Qg3 {[%clk 0:02:47]}  h5 {[%clk 0:02:38]} 11. Bf4 {[%clk 0:02:38]}  e5 {[%clk 0:02:38]} 12. Be3 {[%clk 0:02:38]}  h4 {[%clk 0:02:38]} 13. Qf3 {[%clk 0:02:37]}  h3 {[%clk 0:02:37]} 14. Nd5 {[%clk 0:02:36]}  Qd8 {[%clk 0:02:30]} 15. g3 {[%clk 0:02:32]}  Nc6 {[%clk 0:02:25]} 16. Bxa7 {[%clk 0:02:30]}  Rxa7 {[%clk 0:02:26]} 17. Qe3 {[%clk 0:02:31]}  Be6 {[%clk 0:02:13]} 18. f4 {[%clk 0:02:30]}  Nf6 {[%clk 0:02:12]} 19. fxe5 {[%clk 0:02:28]}  Ng4 {[%clk 0:02:07]} 20. Qe2 {[%clk 0:02:21]}  Ngxe5 {[%clk 0:02:05]} 21. Nf4 {[%clk 0:02:19]}  Bg4 {[%clk 0:02:00]} 22. Qf2 {[%clk 0:02:18]}  Kg8 {[%clk 0:01:52]} 23. Be2 {[%clk 0:02:18]}  Qd7 {[%clk 0:01:48]} 24. Rad1 {[%clk 0:02:17]}  b5 {[%clk 0:01:42]} 25. Nd5 {[%clk 0:02:12]}  Rh6 {[%clk 0:01:38]} 26. Ne3 {[%clk 0:02:06]}  Bxe2 {[%clk 0:01:35]} 27. Qxe2 {[%clk 0:02:07]}  Rg6 {[%clk 0:01:34]} 28. Nf5 {[%clk 0:02:04]}  Ra8 {[%clk 0:01:28]} 29. Qh5 {[%clk 0:02:02]}  Qa7+ {[%clk 0:01:27]} 30. Kh1 {[%clk 0:01:55]}  Ng4 {[%clk 0:01:26]} 31. Rd2 {[%clk 0:01:47]}  Ne3 {[%clk 0:01:19]} 32. Rf3 {[%clk 0:01:29]}  Nc4 {[%clk 0:01:14]} 33. Rdf2 {[%clk 0:01:25]}  N6e5 {[%clk 0:01:14]} 34. Rf4 {[%clk 0:01:25]}  Ng4 {[%clk 0:01:05]} 35. Rf1 {[%clk 0:00:58]}  Nce3 {[%clk 0:01:05]} 36. Nxe3 {[%clk 0:00:56]}  Qxe3 {[%clk 0:00:59]} 37. Qxh3 {[%clk 0:00:48]}  Nxh2 {[%clk 0:00:51]} 38. Qxh2 {[%clk 0:00:45]}  Rxg3 {[%clk 0:00:46]} 39. Rh4 {[%clk 0:00:45]}  Kf8 {[%clk 0:00:42]} 40. Nd4 {[%clk 0:00:39]}  g6 {[%clk 0:00:38]} 41. Ne2 {[%clk 0:00:36]}  Rg5 {[%clk 0:00:35]} 42. Qxd6+ {[%clk 0:00:34]}  Kg8 {[%clk 0:00:35]} 43. Qh2 {[%clk 0:00:31]}  Kf8 {[%clk 0:00:35]} 44. Rh8+ {[%clk 0:00:30]}  Ke7 {[%clk 0:00:35]} 45. Qc7+ {[%clk 0:00:30]}  Ke6 {[%clk 0:00:34]} 46. Qc6+ {[%clk 0:00:28]}  Ke7 {[%clk 0:00:33]} 47. Qf6+ {[%clk 0:00:28]}  Kd7 {[%clk 0:00:33]} 48. Rd1+ {[%clk 0:00:28]}  Kc7 {[%clk 0:00:32]} 49. Qd6+ {[%clk 0:00:19]}  Kb7 {[%clk 0:00:32]} 50. Qe7+ {[%clk 0:00:10]}  Kb6 {[%clk 0:00:30]} 51. Rd6+ {[%clk 0:00:09]}  Ka5 {[%clk 0:00:31]} 52. Qc7+ {[%clk 0:00:09]}  Ka4 {[%clk 0:00:31]} 53. b3+ {[%clk 0:00:04]}  Ka3 {[%clk 0:00:31]} 54. Qa5+ {[%clk 0:00:04]}  Kb2 {[%clk 0:00:32]} 55. Qc3+ {[%clk 0:00:01]}  Qxc3 {[%clk 0:00:32]} 56. Nxc3 {[%clk 0:00:02]}  Rxh8# {[%clk 0:00:32]} 0-1


[Site "https://www.chess.com"]

[Event "Titled Tuesday Blitz April 05 Late 2022"]
[White "Kozin, Yuri"]
[Black "Estrada Nieto, Julian"]
[WhiteFideId "4129920"]
[BlackFideId "5101018"]
[WhiteElo "2522"]
[BlackElo "2364"]
[Result "0-1"]
[Round "08"]
[TimeControl "180+1"]
[Date "2022.04.06"]
[WhiteClock "0:00:02"]
[BlackClock "0:00:34"]

1. e4 {[%clk 0:03:00]}  e5 {[%clk 0:03:00]} 2. Nf3 {[%clk 0:03:00]}  Nc6 {[%clk 0:03:00]} 3. Bb5 {[%clk 0:03:00]}  a6 {[%clk 0:03:00]} 4. Ba4 {[%clk 0:03:00]}  Nf6 {[%clk 0:03:01]} 5. O-O {[%clk 0:03:00]}  Be7 {[%clk 0:03:01]} 6. Re1 {[%clk 0:03:01]}  b5 {[%clk 0:03:02]} 7. Bb3 {[%clk 0:03:02]}  d6 {[%clk 0:03:03]} 8. c3 {[%clk 0:03:02]}  O-O {[%clk 0:03:03]} 9. h3 {[%clk 0:03:02]}  Bb7 {[%clk 0:03:04]} 10. d4 {[%clk 0:03:03]}  Re8 {[%clk 0:03:03]} 11. a4 {[%clk 0:02:56]}  Bf8 {[%clk 0:03:01]} 12. d5 {[%clk 0:02:56]}  Na5 {[%clk 0:03:00]} 13. Bc2 {[%clk 0:02:54]}  c6 {[%clk 0:02:59]} 14. dxc6 {[%clk 0:02:48]}  Bxc6 {[%clk 0:02:59]} 15. Bg5 {[%clk 0:02:49]}  h6 {[%clk 0:02:55]} 16. Bxf6 {[%clk 0:02:48]}  Qxf6 {[%clk 0:02:55]} 17. Na3 {[%clk 0:02:44]}  Nc4 {[%clk 0:02:50]} 18. Nxc4 {[%clk 0:02:24]}  bxc4 {[%clk 0:02:50]} 19. Qe2 {[%clk 0:02:24]}  d5 {[%clk 0:02:41]} 20. exd5 {[%clk 0:02:23]}  Bxd5 {[%clk 0:02:42]} 21. Be4 {[%clk 0:02:23]}  Qc6 {[%clk 0:02:27]} 22. Bxd5 {[%clk 0:02:19]}  Qxd5 {[%clk 0:02:28]} 23. Rad1 {[%clk 0:02:20]}  Qc6 {[%clk 0:02:19]} 24. Nxe5 {[%clk 0:02:07]}  Qxa4 {[%clk 0:02:19]} 25. Qf3 {[%clk 0:01:52]}  Ra7 {[%clk 0:02:12]} 26. Qd5 {[%clk 0:01:29]}  Rae7 {[%clk 0:02:07]} 27. f4 {[%clk 0:01:17]}  Qb5 {[%clk 0:02:06]} 28. Qxb5 {[%clk 0:00:55]}  axb5 {[%clk 0:02:06]} 29. Kf2 {[%clk 0:00:56]}  f6 {[%clk 0:01:59]} 30. Nd7 {[%clk 0:00:33]}  Rxe1 {[%clk 0:01:59]} 31. Rxe1 {[%clk 0:00:33]}  Rxe1 {[%clk 0:01:53]} 32. Kxe1 {[%clk 0:00:34]}  Bd6 {[%clk 0:01:54]} 33. f5 {[%clk 0:00:30]}  Kf7 {[%clk 0:01:50]} 34. Ke2 {[%clk 0:00:27]}  Ke7 {[%clk 0:01:44]} 35. Nb6 {[%clk 0:00:26]}  Bc5 {[%clk 0:01:41]} 36. Nd5+ {[%clk 0:00:23]}  Kd6 {[%clk 0:01:41]} 37. Nf4 {[%clk 0:00:22]}  Ke5 {[%clk 0:01:39]} 38. Ne6 {[%clk 0:00:22]}  Bd6 {[%clk 0:01:17]} 39. Nxg7 {[%clk 0:00:22]}  Ke4 {[%clk 0:01:02]} 40. g4 {[%clk 0:00:20]}  Bf4 {[%clk 0:01:00]} 41. Ne6 {[%clk 0:00:15]}  Bc1 {[%clk 0:00:59]} 42. Nc7 {[%clk 0:00:13]}  b4 {[%clk 0:00:54]} 43. Nb5 {[%clk 0:00:09]}  b3 {[%clk 0:00:48]} 44. Nd6+ {[%clk 0:00:07]}  Kd5 {[%clk 0:00:46]} 45. Ne8 {[%clk 0:00:07]}  Bxb2 {[%clk 0:00:45]} 46. Kd2 {[%clk 0:00:06]}  Ke5 {[%clk 0:00:41]} 47. Nc7 {[%clk 0:00:06]}  Ba3 {[%clk 0:00:39]} 48. Nb5 {[%clk 0:00:05]}  Bc5 {[%clk 0:00:37]} 49. Kc1 {[%clk 0:00:02]}  Ke4 {[%clk 0:00:34]} 50. Kb2 {[%clk 0:00:02]}  Kf3 {[%clk 0:00:34]} 0-1


[Site "https://www.chess.com"]

[Event "Titled Tuesday Blitz April 05 Late 2022"]
[White "Koziorowicz, Michal"]
[Black "Sztokbant, Bernardo Vainzoff"]
[WhiteFideId "21809194"]
[BlackFideId "2115956"]
[WhiteElo "2660"]
[BlackElo "2535"]
[Result "1-0"]
[Round "08"]
[TimeControl "180+1"]
[Date "2022.04.06"]
[WhiteClock "0:00:50"]
[BlackClock "0:00:07"]

1. e4 {[%clk 0:02:38]}  e5 {[%clk 0:02:59]} 2. Bc4 {[%clk 0:02:37]}  Nf6 {[%clk 0:02:58]} 3. Nc3 {[%clk 0:02:36]}  Bb4 {[%clk 0:02:52]} 4. Nge2 {[%clk 0:02:35]}  O-O {[%clk 0:02:48]} 5. O-O {[%clk 0:02:33]}  c6 {[%clk 0:02:44]} 6. d4 {[%clk 0:02:31]}  d5 {[%clk 0:02:35]} 7. dxe5 {[%clk 0:02:29]}  Nxe4 {[%clk 0:02:27]} 8. Nxe4 {[%clk 0:02:26]}  dxe4 {[%clk 0:02:28]} 9. Ng3 {[%clk 0:02:23]}  Qe7 {[%clk 0:02:23]} 10. Qh5 {[%clk 0:02:20]}  Nd7 {[%clk 0:02:04]} 11. Bf4 {[%clk 0:02:17]}  g6 {[%clk 0:01:53]} 12. Qg5 {[%clk 0:01:56]}  Qxg5 {[%clk 0:01:53]} 13. Bxg5 {[%clk 0:01:57]}  Nxe5 {[%clk 0:01:51]} 14. Bb3 {[%clk 0:01:57]}  Bf5 {[%clk 0:01:36]} 15. c3 {[%clk 0:01:56]}  Bc5 {[%clk 0:01:31]} 16. Rae1 {[%clk 0:01:56]}  Nd3 {[%clk 0:01:26]} 17. Re2 {[%clk 0:01:55]}  Rfe8 {[%clk 0:01:24]} 18. Bf6 {[%clk 0:01:29]}  Nf4 {[%clk 0:01:19]} 19. Ree1 {[%clk 0:01:26]}  Nd5 {[%clk 0:01:09]} 20. Bxd5 {[%clk 0:01:15]}  cxd5 {[%clk 0:01:10]} 21. Nxf5 {[%clk 0:01:15]}  gxf5 {[%clk 0:01:10]} 22. Rd1 {[%clk 0:01:16]}  Re6 {[%clk 0:00:56]} 23. Rxd5 {[%clk 0:01:16]}  Rxf6 {[%clk 0:00:54]} 24. Rxc5 {[%clk 0:01:17]}  Rd8 {[%clk 0:00:55]} 25. b4 {[%clk 0:01:10]}  Rd2 {[%clk 0:00:52]} 26. a4 {[%clk 0:01:10]}  Kg7 {[%clk 0:00:48]} 27. Rc7 {[%clk 0:01:08]}  Rc6 {[%clk 0:00:37]} 28. Rxb7 {[%clk 0:01:07]}  Rxc3 {[%clk 0:00:37]} 29. Rxa7 {[%clk 0:01:06]}  Rcc2 {[%clk 0:00:37]} 30. g3 {[%clk 0:00:51]}  e3 {[%clk 0:00:31]} 31. Re7 {[%clk 0:00:51]}  e2 {[%clk 0:00:17]} 32. Re1 {[%clk 0:00:50]}  Rd1 {[%clk 0:00:18]} 33. Rxe2 {[%clk 0:00:50]}  Rxe1+ {[%clk 0:00:07]} 34. Rxe1 {[%clk 0:00:50]}  Ra2 {[%clk 0:00:07]} 35. a5 {[%clk 0:00:50]} 1-0


[Site "https://www.chess.com"]

[Event "Titled Tuesday Blitz April 05 Late 2022"]
[White "Kujawski, Adam"]
[Black "Saldano Dayer, Horacio"]
[WhiteFideId "1100920"]
[BlackFideId "103411"]
[WhiteElo "2346"]
[BlackElo "2514"]
[Result "1-0"]
[Round "08"]
[TimeControl "180+1"]
[Date "2022.04.06"]
[WhiteClock "0:00:19"]
[BlackClock "0:00:03"]

1. e4 {[%clk 0:03:00]}  d6 {[%clk 0:02:09]} 2. d4 {[%clk 0:02:58]}  Nf6 {[%clk 0:02:09]} 3. Nc3 {[%clk 0:02:58]}  e5 {[%clk 0:02:09]} 4. Nge2 {[%clk 0:02:51]}  Be7 {[%clk 0:02:05]} 5. g3 {[%clk 0:02:51]}  O-O {[%clk 0:02:04]} 6. Bg2 {[%clk 0:02:51]}  c6 {[%clk 0:02:02]} 7. O-O {[%clk 0:02:51]}  b5 {[%clk 0:01:57]} 8. a4 {[%clk 0:02:47]}  b4 {[%clk 0:01:55]} 9. Nb1 {[%clk 0:02:47]}  Nbd7 {[%clk 0:01:51]} 10. c4 {[%clk 0:02:42]}  a5 {[%clk 0:01:46]} 11. b3 {[%clk 0:02:41]}  c5 {[%clk 0:01:33]} 12. d5 {[%clk 0:02:23]}  Ne8 {[%clk 0:01:30]} 13. f4 {[%clk 0:02:22]}  exf4 {[%clk 0:01:19]} 14. gxf4 {[%clk 0:02:15]}  Bf6 {[%clk 0:01:12]} 15. Ra2 {[%clk 0:02:14]}  g6 {[%clk 0:01:08]} 16. Nd2 {[%clk 0:01:59]}  Bg7 {[%clk 0:01:06]} 17. Nf3 {[%clk 0:01:52]}  Ndf6 {[%clk 0:00:58]} 18. Ng3 {[%clk 0:01:47]}  Bg4 {[%clk 0:00:54]} 19. h3 {[%clk 0:01:37]}  Nh5 {[%clk 0:00:40]} 20. hxg4 {[%clk 0:01:15]}  Nxg3 {[%clk 0:00:40]} 21. Re1 {[%clk 0:01:14]}  Nf6 {[%clk 0:00:33]} 22. Kf2 {[%clk 0:01:10]}  Ngxe4+ {[%clk 0:00:31]} 23. Kg1 {[%clk 0:01:09]}  Nc3 {[%clk 0:00:29]} 24. Qc2 {[%clk 0:01:07]}  Nxa2 {[%clk 0:00:29]} 25. Qxa2 {[%clk 0:01:08]}  Nxg4 {[%clk 0:00:28]} 26. f5 {[%clk 0:01:06]}  Ne5 {[%clk 0:00:25]} 27. Ng5 {[%clk 0:00:56]}  Nd3 {[%clk 0:00:22]} 28. Be4 {[%clk 0:00:40]}  Nxc1 {[%clk 0:00:20]} 29. Qg2 {[%clk 0:00:37]}  Bd4+ {[%clk 0:00:17]} 30. Kf1 {[%clk 0:00:36]}  Bf6 {[%clk 0:00:15]} 31. Nxh7 {[%clk 0:00:35]}  Re8 {[%clk 0:00:11]} 32. fxg6 {[%clk 0:00:32]}  fxg6 {[%clk 0:00:07]} 33. Qxg6+ {[%clk 0:00:21]}  Bg7 {[%clk 0:00:07]} 34. Kg2 {[%clk 0:00:21]}  Re5 {[%clk 0:00:06]} 35. Rf1 {[%clk 0:00:20]}  Qe7 {[%clk 0:00:06]} 36. Nf6+ {[%clk 0:00:20]}  Qxf6 {[%clk 0:00:04]} 37. Rxf6 {[%clk 0:00:20]}  Ra7 {[%clk 0:00:03]} 38. Qh7# {[%clk 0:00:19]} 1-0


[Site "https://www.chess.com"]

[Event "Titled Tuesday Blitz April 05 Late 2022"]
[White "Martinez Alcantara, Jose Eduardo"]
[Black "Ibarra Jerez, Jose Carlos"]
[WhiteFideId "3805662"]
[BlackFideId "2226332"]
[WhiteElo "2690"]
[BlackElo "2626"]
[Result "0-1"]
[Round "08"]
[TimeControl "180+1"]
[Date "2022.04.05"]
[WhiteClock "0:00:07"]
[BlackClock "0:00:11"]

1. e4 {[%clk 0:03:00]}  e6 {[%clk 0:02:58]} 2. d4 {[%clk 0:02:56]}  d5 {[%clk 0:02:58]} 3. Nd2 {[%clk 0:02:57]}  c5 {[%clk 0:02:57]} 4. Ngf3 {[%clk 0:02:49]}  cxd4 {[%clk 0:02:57]} 5. Nxd4 {[%clk 0:02:50]}  Nf6 {[%clk 0:02:54]} 6. exd5 {[%clk 0:02:46]}  Nxd5 {[%clk 0:02:54]} 7. N2f3 {[%clk 0:02:46]}  Bb4+ {[%clk 0:02:53]} 8. Bd2 {[%clk 0:02:46]}  O-O {[%clk 0:02:53]} 9. Bxb4 {[%clk 0:02:45]}  Nxb4 {[%clk 0:02:52]} 10. Qd2 {[%clk 0:02:46]}  N8c6 {[%clk 0:02:47]} 11. c3 {[%clk 0:02:35]}  Nxd4 {[%clk 0:02:44]} 12. Nxd4 {[%clk 0:02:36]}  e5 {[%clk 0:02:39]} 13. cxb4 {[%clk 0:02:15]}  exd4 {[%clk 0:02:34]} 14. Be2 {[%clk 0:02:14]}  Bf5 {[%clk 0:02:29]} 15. O-O {[%clk 0:02:13]}  d3 {[%clk 0:02:22]} 16. Bf3 {[%clk 0:02:13]}  Qb6 {[%clk 0:02:22]} 17. a4 {[%clk 0:02:10]}  Rac8 {[%clk 0:02:14]} 18. a5 {[%clk 0:02:07]}  Qb5 {[%clk 0:01:47]} 19. Qf4 {[%clk 0:01:42]}  Rc4 {[%clk 0:01:42]} 20. Qe3 {[%clk 0:01:37]}  a6 {[%clk 0:01:25]} 21. Rac1 {[%clk 0:01:29]}  Rc2 {[%clk 0:00:50]} 22. Qe7 {[%clk 0:01:15]}  b6 {[%clk 0:00:39]} 23. axb6 {[%clk 0:01:10]}  Qxb6 {[%clk 0:00:38]} 24. b3 {[%clk 0:00:57]}  h6 {[%clk 0:00:32]} 25. Rcd1 {[%clk 0:00:47]}  Rb8 {[%clk 0:00:27]} 26. Bd5 {[%clk 0:00:46]}  Bg6 {[%clk 0:00:25]} 27. Bc4 {[%clk 0:00:47]}  Qxb4 {[%clk 0:00:23]} 28. Qe3 {[%clk 0:00:38]}  a5 {[%clk 0:00:20]} 29. Qg3 {[%clk 0:00:39]}  Rb6 {[%clk 0:00:18]} 30. Bd5 {[%clk 0:00:34]}  Qd4 {[%clk 0:00:16]} 31. Bc4 {[%clk 0:00:15]}  Rc3 {[%clk 0:00:16]} 32. Qc7 {[%clk 0:00:13]}  Rf6 {[%clk 0:00:15]} 33. Rde1 {[%clk 0:00:11]}  Kh7 {[%clk 0:00:14]} 34. Qc8 {[%clk 0:00:11]}  Bf5 {[%clk 0:00:14]} 35. Qb8 {[%clk 0:00:07]}  d2 {[%clk 0:00:14]} 36. Re8 {[%clk 0:00:08]}  d1=Q {[%clk 0:00:12]} 37. Rh8+ {[%clk 0:00:08]}  Kg6 {[%clk 0:00:12]} 38. Qg3+ {[%clk 0:00:08]}  Q1g4 {[%clk 0:00:12]} 39. Qb8 {[%clk 0:00:07]}  Be4 {[%clk 0:00:11]} 0-1


[Site "https://www.chess.com"]

[Event "Titled Tuesday Blitz April 05 Late 2022"]
[White "Melkumyan, Hrant"]
[Black "Tristan, Leonardo"]
[WhiteFideId "13302485"]
[BlackFideId "113816"]
[WhiteElo "2604"]
[BlackElo "2404"]
[Result "0-1"]
[Round "08"]
[TimeControl "180+1"]
[Date "2022.04.05"]
[WhiteClock "0:00:20"]
[BlackClock "0:00:52"]

1. c4 {[%clk 0:02:59]}  e6 {[%clk 0:03:00]} 2. g3 {[%clk 0:02:59]}  d5 {[%clk 0:03:00]} 3. Bg2 {[%clk 0:02:59]}  d4 {[%clk 0:02:58]} 4. Nf3 {[%clk 0:02:59]}  Nc6 {[%clk 0:02:58]} 5. O-O {[%clk 0:02:59]}  Bc5 {[%clk 0:02:59]} 6. d3 {[%clk 0:02:56]}  Nf6 {[%clk 0:02:58]} 7. Bg5 {[%clk 0:02:56]}  h6 {[%clk 0:02:49]} 8. Bxf6 {[%clk 0:02:53]}  Qxf6 {[%clk 0:02:50]} 9. Nbd2 {[%clk 0:02:54]}  Qd8 {[%clk 0:02:47]} 10. Ne1 {[%clk 0:02:54]}  a5 {[%clk 0:02:45]} 11. Nc2 {[%clk 0:02:54]}  e5 {[%clk 0:02:36]} 12. Rb1 {[%clk 0:02:47]}  h5 {[%clk 0:02:33]} 13. a3 {[%clk 0:02:42]}  a4 {[%clk 0:02:31]} 14. b4 {[%clk 0:02:40]}  axb3 {[%clk 0:02:32]} 15. Nxb3 {[%clk 0:02:40]}  Be7 {[%clk 0:02:28]} 16. c5 {[%clk 0:02:33]}  h4 {[%clk 0:02:26]} 17. Nb4 {[%clk 0:02:34]}  Nxb4 {[%clk 0:02:24]} 18. axb4 {[%clk 0:02:33]}  c6 {[%clk 0:02:21]} 19. Na5 {[%clk 0:02:29]}  Qc7 {[%clk 0:02:12]} 20. Nc4 {[%clk 0:02:23]}  Be6 {[%clk 0:02:13]} 21. Qc2 {[%clk 0:02:20]}  Rd8 {[%clk 0:02:11]} 22. b5 {[%clk 0:02:14]}  Bd5 {[%clk 0:02:06]} 23. Bxd5 {[%clk 0:01:44]}  cxd5 {[%clk 0:01:49]} 24. Nd2 {[%clk 0:01:35]}  Qxc5 {[%clk 0:01:42]} 25. Qxc5 {[%clk 0:01:33]}  Bxc5 {[%clk 0:01:42]} 26. Rfc1 {[%clk 0:01:34]}  b6 {[%clk 0:01:39]} 27. Nb3 {[%clk 0:01:32]}  Rc8 {[%clk 0:01:34]} 28. Nxc5 {[%clk 0:01:28]}  Rxc5 {[%clk 0:01:34]} 29. Rxc5 {[%clk 0:01:26]}  bxc5 {[%clk 0:01:35]} 30. Rc1 {[%clk 0:01:27]}  hxg3 {[%clk 0:01:18]} 31. hxg3 {[%clk 0:01:21]}  c4 {[%clk 0:01:14]} 32. dxc4 {[%clk 0:01:20]}  dxc4 {[%clk 0:01:15]} 33. Rxc4 {[%clk 0:01:20]}  Kd7 {[%clk 0:01:15]} 34. b6 {[%clk 0:01:14]}  Rc8 {[%clk 0:01:09]} 35. Rb4 {[%clk 0:00:58]}  Rb8 {[%clk 0:00:57]} 36. f4 {[%clk 0:00:57]}  f6 {[%clk 0:00:57]} 37. fxe5 {[%clk 0:00:40]}  fxe5 {[%clk 0:00:58]} 38. Rb5 {[%clk 0:00:41]}  Kd6 {[%clk 0:00:58]} 39. Kf2 {[%clk 0:00:39]}  e4 {[%clk 0:00:59]} 40. b7 {[%clk 0:00:33]}  Kc6 {[%clk 0:00:57]} 41. Rb4 {[%clk 0:00:26]}  Kc5 {[%clk 0:00:56]} 42. Rb1 {[%clk 0:00:24]}  Kc6 {[%clk 0:00:53]} 43. Rb4 {[%clk 0:00:20]}  Kc5 {[%clk 0:00:53]} 44. Rb1 {[%clk 0:00:20]}  Kc6 {[%clk 0:00:52]} 0-1


[Site "https://www.chess.com"]

[Event "Titled Tuesday Blitz April 05 Late 2022"]
[White "Mikhalsky, Vladimir"]
[Black "Bowden, Karl"]
[WhiteFideId "14144352"]
[BlackFideId "400548"]
[WhiteElo "2513"]
[BlackElo "2349"]
[Result "1-0"]
[Round "08"]
[TimeControl "180+1"]
[Date "2022.04.06"]
[WhiteClock "0:00:38"]
[BlackClock "0:00:03"]

1. e4 {[%clk 0:02:59]}  e5 {[%clk 0:02:59]} 2. Nf3 {[%clk 0:02:58]}  d5 {[%clk 0:02:59]} 3. Nxe5 {[%clk 0:02:55]}  Bd6 {[%clk 0:02:59]} 4. d4 {[%clk 0:02:53]}  dxe4 {[%clk 0:02:59]} 5. Nc4 {[%clk 0:02:49]}  Nc6 {[%clk 0:02:59]} 6. Nc3 {[%clk 0:02:46]}  Bf5 {[%clk 0:02:56]} 7. Nxd6+ {[%clk 0:02:42]}  Qxd6 {[%clk 0:02:56]} 8. Bb5 {[%clk 0:02:41]}  O-O-O {[%clk 0:02:54]} 9. Bxc6 {[%clk 0:02:31]}  Qxc6 {[%clk 0:02:53]} 10. O-O {[%clk 0:02:28]}  Qg6 {[%clk 0:02:28]} 11. Bf4 {[%clk 0:02:22]}  Ne7 {[%clk 0:01:41]} 12. Nb5 {[%clk 0:02:10]}  Nd5 {[%clk 0:01:38]} 13. Bg3 {[%clk 0:02:09]}  a6 {[%clk 0:01:35]} 14. c4 {[%clk 0:02:08]}  axb5 {[%clk 0:01:34]} 15. cxd5 {[%clk 0:02:08]}  Rxd5 {[%clk 0:01:34]} 16. a4 {[%clk 0:01:56]}  Qb6 {[%clk 0:00:49]} 17. axb5 {[%clk 0:01:50]}  Kd7 {[%clk 0:00:46]} 18. Rc1 {[%clk 0:01:46]}  Rc8 {[%clk 0:00:45]} 19. Qh5 {[%clk 0:01:42]}  Be6 {[%clk 0:00:35]} 20. Qxh7 {[%clk 0:01:41]}  Qxd4 {[%clk 0:00:35]} 21. Rfe1 {[%clk 0:01:21]}  Qxb2 {[%clk 0:00:17]} 22. Qxe4 {[%clk 0:01:17]}  Qxb5 {[%clk 0:00:16]} 23. h3 {[%clk 0:01:10]}  c6 {[%clk 0:00:15]} 24. Red1 {[%clk 0:01:08]}  Rxd1+ {[%clk 0:00:13]} 25. Rxd1+ {[%clk 0:01:07]}  Ke8 {[%clk 0:00:12]} 26. Qh4 {[%clk 0:01:01]}  Qc4 {[%clk 0:00:06]} 27. Rd4 {[%clk 0:00:48]}  Qc1+ {[%clk 0:00:03]} 28. Kh2 {[%clk 0:00:48]}  f6 {[%clk 0:00:03]} 29. Re4 {[%clk 0:00:38]} 1-0


[Site "https://www.chess.com"]